Cogmind - Beta 14 @@@ ROGUE MODE // 2025.05.03 @ 07:24:08 Player: ae Result: Destroyed by G-47 Trooper with Particle Gun Performance ------------- Evolutions (1) 500 Regions Visited (2) 400 Robots Destroyed (23) 115 Value Destroyed (694) 694 Prototype IDs (0) 0 Alien Tech Used (0) 0 Bonus (0) 0 TOTAL SCORE: 1709 Bonus ------- None Cogmind --------- Core Integrity 0/400 Matter 227/300 Energy 92/100 System Corruption 10% Temperature Cool (35) Movement Walking (190) Ox1 Location -9/Materials Parts ------- > --- POWER (1) -------- (None) > --- PROPULSION (4) --- Aluminum Leg Aluminum Leg Aluminum Leg Aluminum Leg > --- UTILITY (2) ------ High-capacity Storage Unit > --- WEAPON (2) ------- Particle Cannon Assault Rifle > --- INVENTORY (20) --- Light Ion Engine Improved Ion Engine Light Treads Aluminum Leg Aluminum Leg Aluminum Leg Small Storage Unit Small Laser Datajack Peak State ------------ > --- POWER ------------ Improved Ion Engine > --- PROPULSION ------- Wheel Wheel Wheel Armored Wheel > --- UTILITY ---------- High-capacity Storage Unit Visual Processing Unit > --- WEAPON ----------- Assault Rifle Light Assault Rifle > --- INVENTORY -------- Light Ion Engine Light Ion Engine Light Treads Light Treads Aluminum Leg Aluminum Leg Compact Wheel Small Storage Unit Salvage Targeting Computer Small Laser Light Assault Rifle Datajack Hammer [Rating: 13] Favorites ----------- Power Light Ion Engine Engine Light Ion Engine Propulsion Wheel Treads Light Treads Leg Aluminum Leg Wheel Wheel Utility High-capacity Storage Unit Storage High-capacity Storage Unit Processor Visual Processing Unit Weapon Assault Rifle Energy Gun Small Laser Energy Cannon Particle Cannon Ballistic Gun Assault Rifle Impact Weapon Hammer Build | -11 -10 -9 ------- Run | Yrd Mat Mat Slots Evolved 2 | . . 2 Power . | . . . Propulsion 2 | . . 2 Utility . | . . . Weapon . | . . . Parts Attached 35 | 6 7 22 Power 4 | 1 1 2 Engine 4 | 1 1 2 Core . | . . . Reactor . | . . . Propulsion 16 | 2 3 11 Treads 2 | . . 2 Leg 6 | . 1 5 Wheel 8 | 2 2 4 Hover . | . . . Flight . | . . . Utility 4 | 1 2 1 Device . | . . . Storage 2 | 1 1 . Processor 2 | . 1 1 Hackware . | . . . Protection . | . . . Artifact . | . . . Weapon 11 | 2 1 8 Energy Gun 1 | . . 1 Energy Cannon 3 | . . 3 Ballistic Gun 6 | 2 1 3 Ballistic Cannon . | . . . Launcher . | . . . Special Weapon . | . . . Impact Weapon 1 | . . 1 Slashing Weapon . | . . . Piercing Weapon . | . . . Special Melee Weapon . | . . . Unidentified Prototypes . | . . . Parts Lost 13 | . 1 12 Power 2 | . . 2 Propulsion 5 | . 1 4 Utility 2 | . . 2 Weapon 4 | . . 4 Highest Loss Streak 7 | . 1 7 To Critical Strikes . | . . . Average Slot Usage (%) 89 | . 93 87 Engine 10 | . 13 8 Treads 4 | . . 7 Leg 9 | . 1 14 Wheel 20 | . 26 18 Storage 12 | . 14 11 Processor 8 | . 9 8 Energy Gun 1 | . . 2 Energy Cannon 2 | . . 3 Ballistic Gun 15 | . 27 10 Impact Weapon 2 | . . 3 Peak Build Rating 13 | 6 9 13 Average Rating 9 | 4 7 10 On Entrance 5 | . 6 9 Naked Turns . | . . . Heaviest Build 51 | 11 51 50 Greatest Support 46 | 26 26 46 Greatest Overweight (x) 4 | . 4 3 Average Overweight (x) . | . . 1 Largest Inventory Capacity 20 | 8 20 20 Average Capacity 18 | 6 16 20 Most Carried 15 | 6 11 15 Average Carried 8 | 2 7 9 Final Capacity 20 | 8 20 20 Final Carried 11 | 6 11 9 Class Distribution -------------------- 100% | Mutant Dominant Class ---------------- Mutant | -10/Materials Mutant | -9/Materials Resources | -11 -10 -9 ----------- Run | Yrd Mat Mat Matter Collected 795 | 258 158 379 Remotely . | . . . Salvage Created 793 | . 169 624 Parts 45 | . 12 33 Haulers Intercepted . | . . . Recyclers Shooed . | . . . Parts Field Recycled . | . . . Retrieved Matter . | . . . Parts Self-Destructed . | . . . Prevented . | . . . Kills | -11 -10 -9 ------- Run | Yrd Mat Mat Combat Hostiles Destroyed 19 | . 5 14 Melee 3 | . . 3 Guns 10 | . 5 5 Cannons 5 | . . 5 Classes Destroyed 6 | . 3 3 Builder 2 | . . 2 Watcher 2 | . 2 . Swarmer 3 | . 3 . Grunt 12 | . 2 10 Brawler 1 | . . 1 Sentry 3 | . . 3 Best Kill Streak 5 | . 5 4 Combat Bots Only 5 | . 5 4 Max Kills in Single Turn 1 | . 1 1 Gunslinging . | . . . Exploded . | . . . Melee 1 | . . 1 Uniques/NPCs Destroyed . | . . . Combat | -11 -10 -9 -------- Run | Yrd Mat Mat Hostile Shots Fired 183 | . 34 149 Missed 36 | . 7 29 Damage Taken 1880 | . 261 1619 Core 444 | . 32 412 Absorbed by Shields . | . . . Core Remaining (%) 93 | 100 87 . Volleys Fired 75 | . 28 47 Largest 2 | . 2 2 Hottest 88 | . 40 88 Shots Fired 135 | . 49 86 Gun 112 | . 49 63 Cannon 23 | . . 23 Launcher . | . . . Special . | . . . Kinetic 110 | . 49 61 Thermal 25 | . . 25 Explosive . | . . . Electromagnetic . | . . . Robot Hit Streak 12 | . 5 12 Robot Miss Streak 6 | . 6 2 Penetration Max . | . . . Secondary Targets 1 | . 1 . Max Gunslinging Chain 1 | . 1 . Shots Hit Robots 107 | . 25 82 Core Hits 36 | . 11 25 Critical Kills 3 | . . 3 Critical Parts Destroyed 3 | . . 3 Critical Strikes 6 | . . 6 Smash 6 | . . 6 Melee Attacks 31 | . . 31 Impact 31 | . . 31 Slashing . | . . . Piercing . | . . . Sneak Attacks . | . . . Combat Hostiles . | . . . Follow-up Attacks . | . . . Damage Inflicted 1901 | . 328 1573 Guns 697 | . 294 403 Cannons 348 | . . 348 Explosions 314 | . . 314 Melee 507 | . . 507 Ramming 35 | . 34 1 Kinetic 685 | . 294 391 Thermal 674 | . . 674 Explosive . | . . . Electromagnetic . | . . . Impact 507 | . . 507 Slashing . | . . . Piercing . | . . . Highest Corruption 10 | . . 10 Average Corruption 9 | . . 9 Corruption Purged . | . . . Corruption Blocked . | . . . Effects 21 | . . 21 Message Errors 2 | . . 2 Matter Fused 7 | . . 7 Energy Discharges 2 | . . 2 Parts Rejected 3 | . . 3 Data Loss (minor) 2 | . . 2 Data Loss (major) 1 | . . 1 Misfires 1 | . . 1 Misdirections 2 | . . 2 Weapon Failures 1 | . . 1 Overload Shots . | . . . Overflow Damage 230 | . 14 216 Projectiles 11 | . . 11 Explosions 134 | . . 134 Melee 85 | . 14 71 Knockbacks 1 | . . 1 Impact 1 | . . 1 Kinetic . | . . . Secondary . | . . . Self-Inflicted Damage 40 | . 17 23 Shots 1 | . . 1 Rammed 2 | . 1 1 Targets Rammed 2 | . 1 1 Kicked . | . . . Crushed . | . . . Highest Temperature 430 | . 6 430 Average Temperature 116 | . 6 121 Received Heat Transfer 771 | . 60 711 Effects 3 | . . 3 Matter Decay 2 | . . 2 Damage (minor) 1 | . . 1 Siege Activations . | . . . Robots Corrupted 2 | . 1 1 Combat Hostiles 1 | . . 1 Parts Fried 5 | . 2 3 Impact Corruptions 4 | . 1 3 Robots Melted . | . . . Combat Hostiles . | . . . Parts Melted 1 | . . 1 Heat Transferred 854 | . . 854 Parts Sabotaged . | . . . Parts Stolen . | . . . Parts Stripped . | . . . Power Chain Reactions . | . . . Alert | -11 -10 -9 ------- Run | Yrd Mat Mat Peak Influence 328 | . 169 328 Initial 70 | . . 70 Average 124 | . 56 164 Maximum Alert Level 1 | . . 1 Low Security (%) 84 | 100 100 76 Level 1 15 | . . 23 Level 2 . | . . . Level 3 . | . . . Level 4 . | . . . Level 5 . | . . . High Security . | . . . Max Security . | . . . Squads Dispatched 3 | . 1 2 Investigation . | . . . Extermination . | . . . Reinforcement 3 | . 1 2 Assault . | . . . Garrison . | . . . Intercept . | . . . Searches Triggered . | . . . Construction Impeded . | . . . Haulers Reinforced . | . . . Active Scanning Responses . | . . . Cargo Convoy Interrupts . | . . . Stealth | -11 -10 -9 --------- Run | Yrd Mat Mat Distress Signals 2 | . . 2 Communications Jammed . | . . . Distress Signals . | . . . Times Spotted 35 | . 9 26 Peak Tracking Total 7 | . 5 7 Tactical Retreats 3 | . 1 2 Traps | -11 -10 -9 ------- Run | Yrd Mat Mat Traps Triggered 1 | . 1 . Indirectly . | . . . Trap Hack Attempts . | . . . Triggered . | . . . Disarmed . | . . . Reprogrammed . | . . . Reused . | . . . Traps Extracted . | . . . Installed . | . . . Triggered . | . . . Machines | -11 -10 -9 ---------- Run | Yrd Mat Mat Machines Disabled 3 | . . 3 Max in Single Turn 3 | . . 3 Machines Repaired . | . . . Machines Dismantled . | . . . Machines Sabotaged . | . . . Overloaded Fab Kills . | . . . Hacking | -11 -10 -9 --------- Run | Yrd Mat Mat Machines Accessed 5 | . 3 2 Terminals 5 | . 3 2 Fabricators . | . . . Repair Stations . | . . . Recycling Units . | . . . Scanalyzers . | . . . Garrison Access . | . . . Total Hacks 7 | . 4 3 Successful . | . . . Failed 7 | . 4 3 Catastrophic 3 | . 2 1 Database Lockouts . | . . . Manual 4 | . 3 1 Terminals 7 | . 4 3 Fabricators . | . . . Repair Stations . | . . . Recycling Units . | . . . Scanalyzers . | . . . Garrison Access . | . . . Terminal Hacks . | . . . Fabricator Hacks . | . . . Repair Station Hacks . | . . . Recycling Unit Hacks . | . . . Scanalyzer . | . . . Garrison Access Hacks . | . . . Unauthorized Hacks . | . . . Terminals . | . . . Fabricators . | . . . Repair Stations . | . . . Recycling Units . | . . . Scanalyzers . | . . . Garrison Access . | . . . Data Cores Recovered . | . . . Used . | . . . Hacking Detections 5 | . 3 2 Full Trace Events 1 | . 1 . Feedback Events . | . . . Feedback Blocked . | . . . Robot Schematics Acquired . | . . . Robots Built . | . . . Authchips . | . . . Time . | . . . Total Robot Build Rating . | . . . Part Schematics Acquired . | . . . Parts Built . | . . . Authchips . | . . . Time . | . . . Total Part Build Rating . | . . . Parts Repaired . | . . . Time . | . . . Parts Recycled . | . . . Recycled Matter . | . . . Retrieved Matter . | . . . Retrieved Components . | . . . Parts Scanalyzed . | . . . Part Schematics Acquired . | . . . Parts Damaged . | . . . Bothacking | -11 -10 -9 ------------ Run | Yrd Mat Mat Used RIF Installer . | . . . Robots Hacked . | . . . Non-combat . | . . . Combat . | . . . Robot Hacks Applied . | . . . Relay Couplers Released . | . . . Fabnet Peak Effective % . | . . . Robots Rewired . | . . . Allies Hacked . | . . . Hacks Repelled . | . . . Allies | -11 -10 -9 -------- Run | Yrd Mat Mat Total Allies . | . . . Largest Group . | . . . Highest-Rated Group . | . . . Highest-Rated Ally . | . . . Total Orders . | . . . Ally Attacks . | . . . Total Damage . | . . . Kills . | . . . Allies Corrupted . | . . . Allies Melted . | . . . Intel | -11 -10 -9 ------- Run | Yrd Mat Mat Robot Analysis Total . | . . . Derelict Logs Recovered . | . . . Drone Launches . | . . . Drone Recoveries . | . . . Exploration | -11 -10 -9 ------------- Run | Yrd Mat Mat Turns Passed 1182 | 44 368 770 Spaces Moved 644 | 34 276 334 Core 1 | 1 . . Treads . | . . . Legs 109 | . . 109 Wheels 534 | 33 276 225 Hover . | . . . Flight . | . . . Fastest Speed 50 | 50 90 85 Average Speed 120 | 86 101 140 Slowest Speed 260 | 90 140 260 Overloaded Moves . | . . . Propulsion Burnouts . | . . . Robots Hopped . | . . . Cave-ins Triggered . | . . . Exploration Rate (%) 30 | 4 54 33 Regions Visited 2 Branch Regions . Pre-discovered Areas . | . . . Known Exits Taken . | . . . Unknown Exits Taken 2 | 1 1 . Scrap Searched . | . . . Spaces Dug . | . . . Terrain Destroyed 25 | . . 25 Melee . | . . . Projectile . | . . . AOE 25 | . . 25 Terrain Rammed . | . . . Walls Destroyed . | . . . Machines Disabled . | . . . Actions | -11 -10 -9 --------- Run | Yrd Mat Mat Total 861 | 45 318 498 Wait 53 | . 1 52 Move 642 | 33 275 334 Hop . | . . . Pick Up 19 | 6 4 9 Fast Attach 14 | 6 6 2 Attach 16 | . 1 15 Detach 4 | . 2 2 Swap 5 | . . 5 Drop . | . . . Fire 75 | . 28 47 Melee 31 | . . 31 Ram 2 | . 1 1 Kick . | . . . Crush . | . . . Escape Stasis . | . . . Rewire . | . . . Trap . | . . . Miscellaneous . | . . . Route ------- -11/Scrapyard -10/Materials (discovered 2 exits: *Mat x2) -9/Materials History --------- Turn | Location | Event 23 | -11/Scrapyard | Discovered new exit (range 15) 45 | -11/Scrapyard | Entered Materials 77 | -10/Materials | Discovered new exit (range 12) 315 | -10/Materials | Build established: Mutant 356 | -10/Materials | Discovered new exit (range 7) 413 | -10/Materials | Entered another Materials area 413 | -9/Materials | Evolved 2 slots: Propulsion x2 746 | -9/Materials | System corruption reached 10% 772 | -9/Materials | Core integrity fell below 50% 806 | -9/Materials | Lost 7 parts (1p3n1u2w) 816 | -9/Materials | Core integrity fell below 20% 1183 | -9/Materials | Destroyed by G-47 Trooper with Particle Gun Last Messages --------------- G-34 Mercenary destroyed. Acquired Aluminum Leg. System corrupted: Matter fused (-8). Acquired Aluminum Leg. R-06 Scavenger collects Ion Engine. Acquired 32 matter. W-16 Scout sends out distress signal. R-06 Scavenger collects Com. Wheel. G-34 Mercenary destroyed. System corrupted: Energy discharge (-27). Acquired Aluminum Leg. Acquired 45 matter. Acquired Sml. Laser. Fusion Modulator explodes. Destroyed Lgt. Nuclear Core. Destroyed Welding Torch. Destroyed Lgt. Ion Engine. Destroyed Wheel. U-05 Engineer destroyed. Fusion Modulator explodes. Map ----- +----------------------------------------------------+ | | | | | | | | | | | ???????????????????????????????? | | ???????????????????????????????? | | ???????????????????????????????? | | ???????????????????????????????? | | ???????????????????????????????? | | ????? ?????????????????????? | | ??? ???????????????????? | | ??# ??????????????????? | | ??# ##;;#??????????????? | | ??# ; ;;????????????? | | ??# ;; ??? ????????? | | ??# g ? ??????? | | ??# #?????? | | ??#; #?????? | | ??#; #?????? | | ??#; ??????? | | ??#; ????????? | | ??#; #?????????? | | ???# #?????????? | | ???# #?????????? | | ???? #;@;;;## #?????????? | | ???# # # ######????? | | ???# # + + ??? | | ???# # # #?????????? | | ???# # # #?????????? | | ???# # # ####+###?????????? | | ???# # # #????????????????? | | ???# ######## #????????????????? | | ???# #??????#[#????????????????? | | ???# #??????# #????????????????? | | ???# #???####+###############??? | | ???# #???# ! #??? | | ???# #???# ! #??? | | ???# ##### """ #??? | | ???# + """ #??? | | ???#=##### """ !!! ""#??? | | ???# #???# """ !! T"#??? | | ???# #???# """ !! ""#??? | | ####+##### % #??? | | # * ###/####+#/###########? | | # """% # %% | | # """ # ########## | | # """ # +% [!! | | # + # !!! | | # """ # # !! | +----------------------------------------------------+ Best States ------------- Heat Dissipation 28 Energy Generation 12 Energy Capacity 265 Matter Stores 300 Matter Capacity 300 Sight Range 18 Terrain Scan Density 10 Evasion (%) 43 Salvage Targeting 1 Item Schematics ----------------- None Robot Schematics ------------------ None Fabricated ------------ Nothing Alien Tech Used ----------------- None Achievements -------------- None Challenges ------------ None Game ------ Seed MicrowarpGravmagMembrane Manual? 0 Play Time 00:15:58 Cumulative 35.1 hours Start 2025.05.03 @ 07:12:00 End 2025.05.03 @ 07:24:08 Sessions 1 Manual Loads 0 Difficulty Rogue Special Mode None Game No. 17 Rogue 13 Adventurer 4 Explorer 0 Win Type - Total 0 Types 0/0/0/0/0/0/0/0/0 Lore% 13 Gallery% 28 Achievement% 25 Wizard Run 0 Options --------- Layout 1 ASCII 0 Keyboard 1 Movement Vi Keybinds 0 Fullscreen 1 Font 24/Smallcaps Map View 50x35 Zoom Use 0% Tactical HUD 0 Map Filters NONE Filters NONE Steam 1 RUN: e53a2757-4878-4666-961f-a761faac4ce3